{"text_format":"3","workbook":"xlsx","n_sheets":1,"sheets":["血圧および血糖値"],"not_rendered":{"defined_names":9},"read":"whole","date_system":"1900"}

{"sheet":"血圧および血糖値","index":0,"n_rows":13,"n_cols":11,"rows_kept":13,"merged":[[0,1,4,3],[0,4,0,9],[1,4,1,6],[1,7,1,9],[3,7,4,7],[3,8,4,8],[3,9,4,9]]}
[null,"血圧血糖値の記録",null,null,"下のセル E2 から J5 のスケール値をカスタマイズします。"]
[{"$nulls":4},"血圧",null,null,"血糖値スケール"]
[{"$nulls":4},120,"最高血圧",140,70,100,150]
[{"$nulls":4},80,"最低血圧",90,"低","標準","高"]
[{"$nulls":4},"目標血圧",null,"医師に問い合わせ"]
[null,"日付","時刻","イベント","最高血圧","最低血圧","心拍数","血糖値","レベル","状態","メモ"]
[null,{"$f":"TODAY()","v":"2018-07-04"},"06:00:00","起床",129,79,72,55,{"$f":"BloodPressureAndGlucose[[#This Row],[血糖値]]","v":55},{"$f":"IFERROR(IF(BloodPressureAndGlucose[[#This Row],[レベル]]=0,\"\",IF(BloodPressureAndGlucose[[#This Row],[レベル]]<=GLow,\"低\",IF(AND(BloodPressureAndGlucose[[#This Row],[レベル]]>GLow,BloodPressureAndGlucose[[#This Row],[レベル]]<GHigh),\"標準\",\"高\"))), \"\")","v":"低"}]
[null,{"$f":"TODAY()","v":"2018-07-04"},"07:00:00","食前",120,80,74,70,{"$f":"BloodPressureAndGlucose[[#This Row],[血糖値]]","v":70},{"$f":"IFERROR(IF(BloodPressureAndGlucose[[#This Row],[レベル]]=0,\"\",IF(BloodPressureAndGlucose[[#This Row],[レベル]]<=GLow,\"低\",IF(AND(BloodPressureAndGlucose[[#This Row],[レベル]]>GLow,BloodPressureAndGlucose[[#This Row],[レベル]]<GHigh),\"標準\",\"高\"))), \"\")","v":"低"}]
[null,"2018-07-04","09:00:00","食後",133,80,75,75,{"$f":"BloodPressureAndGlucose[[#This Row],[血糖値]]","v":75},{"$f":"IFERROR(IF(BloodPressureAndGlucose[[#This Row],[レベル]]=0,\"\",IF(BloodPressureAndGlucose[[#This Row],[レベル]]<=GLow,\"低\",IF(AND(BloodPressureAndGlucose[[#This Row],[レベル]]>GLow,BloodPressureAndGlucose[[#This Row],[レベル]]<GHigh),\"標準\",\"高\"))), \"\")","v":"標準"}]
[null,"2018-07-04","10:00:00","血圧のみ",143,91,75,190,{"$f":"BloodPressureAndGlucose[[#This Row],[血糖値]]","v":190},{"$f":"IFERROR(IF(BloodPressureAndGlucose[[#This Row],[レベル]]=0,\"\",IF(BloodPressureAndGlucose[[#This Row],[レベル]]<=GLow,\"低\",IF(AND(BloodPressureAndGlucose[[#This Row],[レベル]]>GLow,BloodPressureAndGlucose[[#This Row],[レベル]]<GHigh),\"標準\",\"高\"))), \"\")","v":"高"}]
[null,"2018-07-04","12:00:00","食前",141,84,70,140,{"$f":"BloodPressureAndGlucose[[#This Row],[血糖値]]","v":140},{"$f":"IFERROR(IF(BloodPressureAndGlucose[[#This Row],[レベル]]=0,\"\",IF(BloodPressureAndGlucose[[#This Row],[レベル]]<=GLow,\"低\",IF(AND(BloodPressureAndGlucose[[#This Row],[レベル]]>GLow,BloodPressureAndGlucose[[#This Row],[レベル]]<GHigh),\"標準\",\"高\"))), \"\")","v":"標準"}]
[null,{"$f":"TODAY()","v":"2018-07-04"},"15:00:00","食後",132,80,68,90,{"$f":"BloodPressureAndGlucose[[#This Row],[血糖値]]","v":90},{"$f":"IFERROR(IF(BloodPressureAndGlucose[[#This Row],[レベル]]=0,\"\",IF(BloodPressureAndGlucose[[#This Row],[レベル]]<=GLow,\"低\",IF(AND(BloodPressureAndGlucose[[#This Row],[レベル]]>GLow,BloodPressureAndGlucose[[#This Row],[レベル]]<GHigh),\"標準\",\"高\"))), \"\")","v":"標準"},"食事と一緒に血圧の薬を服用"]
[null,"平均値",null,null,{"$f":"SUBTOTAL(101,BloodPressureAndGlucose[最高血圧])","v":133},{"$f":"SUBTOTAL(101,BloodPressureAndGlucose[最低血圧])","v":{"v":82.33333333333333,"d":"82"}},{"$f":"SUBTOTAL(101,BloodPressureAndGlucose[心拍数])","v":{"v":72.33333333333333,"d":"72"}},{"$f":"SUBTOTAL(101,BloodPressureAndGlucose[血糖値])","v":{"v":103.33333333333333,"d":"103"}}]